fUST/lending_fUST_20241110
["ID","MTS","AMOUNT","RATE_DAILY","PERIOD"]
[341842972,1731251450043,-500.0,0.00026846,2]
[341842975,1731251450052,-500.0,0.00026846,2]
[341842977,1731251450062,-500.0,0.00026846,2]
[341842978,1731251450071,-500.0,0.00026846,2]
[341842981,1731251450080,-2739.87,0.00026846,2]
[341842983,1731251450089,-500.0,0.00026846,2]
[341842985,1731251450098,-500.0,0.00026846,2]
[341842987,1731251450111,-581.454559,0.00026846,7]
[341842989,1731251450120,-716.87,0.00026846,2]
[341842991,1731251450129,-581.454559,0.00026846,7]
[341842993,1731251450138,-500.0,0.00026846,2]
[341842995,1731251450148,-500.0,0.00026846,2]
[341842997,1731251450156,-500.0,0.00026846,2]
[341842999,1731251450166,-500.0,0.00026846,2]
[341843001,1731251450175,-500.0,0.00026846,2]
[341843003,1731251450184,-500.0,0.00026846,2]
[341843005,1731251450193,-8203.9,0.00026846,2]
[341843007,1731251450202,-2267.48,0.00026846,2]
[341843009,1731251450213,-500.0,0.00026846,2]
[341843010,1731251450222,-500.0,0.00026846,2]
[341843012,1731251450232,-661.19,0.00026846,2]
[341843015,1731251450241,-1972.07,0.00026846,2]
[341843017,1731251450250,-500.0,0.00026846,2]
[341843018,1731251450259,-647.77,0.00026846,2]
[341843020,1731251450268,-993.31,0.00026847,2]
[341843022,1731251450277,-2249.63,0.00026847,2]
[341843025,1731251450287,-500.0,0.00026847,2]
[341843026,1731251450296,-500.0,0.00026847,2]
[341843028,1731251450305,-500.0,0.00026847,2]
[341843031,1731251450314,-500.0,0.00026847,2]
[341843033,1731251450324,-531.33,0.00026847,2]
[341843035,1731251450332,-297.33705892,0.00026847,2]
[341843036,1731251450342,-500.0,0.00026847,2]
[341843038,1731251450351,-500.0,0.00026847,2]
[341843041,1731251450361,-500.0,0.00026847,2]
[341843043,1731251450370,-151.0,0.00026847,7]
[341843045,1731251450379,-1433.38,0.00026847,2]
[341843047,1731251450388,-639.222275,0.00026847,7]
[341843058,1731251450485,-500.0,0.00026847,2]
[341843060,1731251450495,-639.222275,0.00026847,7]
[341843062,1731251450504,-151.0,0.00026847,7]
[341843064,1731251450513,-151.0,0.00026847,7]
[341843066,1731251450523,-864.8,0.00026847,2]
[341843068,1731251450532,-500.0,0.00026847,2]
[341843070,1731251450542,-932.900632,0.00026847,7]
[341843072,1731251450551,-500.0,0.00026847,2]
[341843074,1731251450561,-932.900632,0.00026847,7]
[341843076,1731251450570,-151.0,0.00026847,7]
[341843078,1731251450579,-3399.721799,0.00026847,7]
[341843080,1731251450588,-151.0,0.00026847,7]
[341843082,1731251450598,-3399.721799,0.00026847,7]
[341843085,1731251450607,-329.349078,0.00026847,7]
[341843087,1731251450616,-329.349078,0.00026847,7]
[341843088,1731251450626,-2054.95,0.00026847,2]
[341843090,1731251450635,-151.0,0.00026847,7]
[341843093,1731251450644,-246.345708,0.00026847,7]
[341843095,1731251450653,-1319.9,0.00026847,2]
[341843097,1731251450663,-257.304202,0.00026847,7]
[341843099,1731251450671,-674.851497,0.00026847,7]
[341843101,1731251450681,-257.304202,0.00026847,7]
[341843102,1731251450690,-535.71,0.00026847,2]
[341843104,1731251450699,-674.851497,0.00026847,7]
[341843106,1731251450708,-2894.26744598,0.00026847,2]
[341843142,1731251451040,-4148.29910337,0.00025466,10]
[341843145,1731251451052,-4250.40596037,0.00025466,10]
[341843147,1731251451063,-1035.09493626,0.00025466,10]
[341843149,1731251451072,-500.0,0.00025739,2]
[341843151,1731251451083,-500.0,0.00025739,2]
[341843153,1731251451092,-500.0,0.00025739,2]
[341843155,1731251451102,-500.0,0.00025739,2]
[341843157,1731251451115,-101.08050454,0.00025739,2]
[341843160,1731251451126,-398.91949546,0.00025739,2]
[341843162,1731251451136,-500.0,0.00025739,2]
[341843164,1731251451146,-500.0,0.00025739,2]
[341843165,1731251451156,-500.0,0.00025739,2]
[341843168,1731251451165,-500.0,0.00025739,2]
[341843170,1731251451174,-500.0,0.00025739,2]
[341843172,1731251451185,-595.87923364,0.00025739,2]
[341843174,1731251451194,-500.0,0.00025739,2]
[341843176,1731251451203,-500.0,0.00025739,2]
[341843178,1731251451214,-500.0,0.00025739,2]
[341843180,1731251451224,-500.0,0.00025739,2]
[341843182,1731251451234,-500.0,0.00025739,2]
[341843184,1731251451244,-500.0,0.00025739,2]
[341843186,1731251451254,-500.0,0.00025739,2]
[341843188,1731251451263,-500.0,0.00025739,2]
[341843190,1731251451272,-500.0,0.00025739,2]
[341843192,1731251451282,-500.0,0.00025739,2]
[341843194,1731251451291,-500.0,0.00025739,2]
[341843196,1731251451300,-500.0,0.00025739,2]
[341843198,1731251451309,-500.0,0.00025739,2]
[341843200,1731251451319,-500.0,0.00025739,2]
[341843202,1731251451328,-500.0,0.00025739,2]
[341843204,1731251451337,-500.0,0.00025739,2]
[341843206,1731251451346,-500.0,0.00025739,2]
[341843208,1731251451355,-500.0,0.00025739,2]
[341843210,1731251451364,-500.0,0.00025739,2]
[341843212,1731251451373,-500.0,0.00025739,2]
[341843214,1731251451382,-500.0,0.00025739,2]
[341843216,1731251451391,-500.0,0.00025739,2]
[341843218,1731251451400,-500.0,0.00025739,2]
[341843220,1731251451410,-500.0,0.00025739,2]
[341843222,1731251451419,-500.0,0.00025739,2]
[341843224,1731251451429,-500.0,0.00025739,2]
[341843226,1731251451438,-500.0,0.00025739,2]
[341843228,1731251451447,-500.0,0.00025739,2]
[341843230,1731251451456,-289.49981234,0.00025739,2]
[341843232,1731251451467,-500.0,0.00025739,2]
[341843234,1731251451476,-500.0,0.00025739,2]
[341843236,1731251451485,-500.0,0.00025739,2]
[341843238,1731251451494,-500.0,0.00025739,2]
[341843240,1731251451503,-500.0,0.00025739,2]
[341843242,1731251451512,-500.0,0.00025739,2]
[341843244,1731251451521,-500.0,0.00025739,2]
[341843246,1731251451530,-500.0,0.00025739,2]
[341843248,1731251451539,-450.79934912,0.00025739,2]
[341843250,1731251451548,-500.0,0.00025739,2]
[341843252,1731251451558,-500.0,0.00025739,2]
[341843254,1731251451568,-4535.79255402,0.00026847,2]
[341843256,1731251451577,-500.0,0.00026847,2]
[341843258,1731251451587,-151.0,0.00026847,7]
[341843260,1731251451596,-2525.55,0.00026847,2]
[341843262,1731251451605,-598.91,0.00026847,2]
[341843264,1731251451614,-246.088511,0.00026847,7]
[341843266,1731251451624,-246.088511,0.00026847,7]
[341843268,1731251451633,-190.81479,0.00026847,7]
[341843270,1731251451642,-190.81479,0.00026847,7]
[341843272,1731251451651,-151.0,0.00026847,7]
[341843274,1731251451661,-500.0,0.00026847,2]
[341843276,1731251451671,-500.0,0.00026847,2]
[341843278,1731251451681,-500.0,0.00026847,2]
[341843280,1731251451690,-895.15,0.00026847,2]
[341843282,1731251451699,-611.87,0.00026849,2]
[341843284,1731251451709,-3361.2,0.00026849,2]
[341843286,1731251451720,-2010.89,0.00026849,2]
[341843288,1731251451729,-506.15118949,0.00026873,2]
[341843290,1731251451739,-500.0,0.00026873,2]
[341843292,1731251451747,-500.0,0.00026873,2]
[341843294,1731251451757,-153.058049,0.00026897,7]
[341843296,1731251451766,-151.0,0.00026897,7]
[341843298,1731251451775,-151.0,0.00026897,7]
[341843300,1731251451784,-151.0,0.00026897,7]
[341843302,1731251451793,-500.0,0.00026898,2]
[341843304,1731251451803,-250.0,0.00026898,2]
[341843306,1731251451812,-500.0,0.00026898,2]
[341843308,1731251451822,-503.37673088,0.00026898,2]
[341843310,1731251451832,-500.0,0.00026898,2]
[341843312,1731251451842,-526.8439543,0.00026898,2]
[341843314,1731251451851,-500.0,0.00026898,2]
[341843316,1731251451861,-500.0,0.00026898,2]
[341843318,1731251451870,-504.29,0.00026898,2]
[341843320,1731251451879,-677.67,0.00026898,2]
[341843322,1731251451888,-500.0,0.00026898,2]
[341843324,1731251451897,-500.0,0.00026898,2]
[341843326,1731251451907,-500.0,0.00026898,2]
[341843329,1731251451916,-500.0,0.00026898,2]
[341843331,1731251451925,-500.0,0.00026898,2]
[341843332,1731251451934,-265.29321313,0.00026898,2]
[341843335,1731251451944,-500.0,0.00026898,2]
[341843337,1731251451953,-617.68450775,0.00026898,2]
[341843338,1731251451964,-453.88348648,0.00026898,2]
[341843341,1731251451974,-419.61093145,0.00026898,2]
[341843343,1731251451983,-504.91238697,0.00026898,2]
[341843345,1731251451992,-500.0,0.00026898,2]
[341843357,1731251452091,-500.0,0.00026898,2]
[341843359,1731251452105,-527.42,0.00026898,2]
[341843361,1731251452115,-500.0,0.00026898,2]
[341843363,1731251452124,-500.0,0.00026898,2]
[341843365,1731251452133,-500.0,0.00026898,2]
[341843367,1731251452143,-512.24,0.00026898,2]
[341843369,1731251452152,-500.0,0.00026898,2]
[341843371,1731251452161,-500.0,0.00026898,2]
[341843373,1731251452171,-503.36798588,0.00026898,2]
[341843375,1731251452181,-558.62,0.00026898,2]
[341843377,1731251452190,-1000.0,0.00026898,2]
[341843379,1731251452199,-500.0,0.00026898,2]
[341843381,1731251452208,-500.0,0.00026898,2]
[341843383,1731251452219,-528.67,0.00026898,2]
[341843385,1731251452228,-500.0,0.00026898,2]
[341843387,1731251452238,-500.0,0.00026898,2]
[341843389,1731251452247,-500.0,0.00026898,2]
[341843391,1731251452256,-500.0,0.00026898,2]
[341843393,1731251452265,-500.0,0.00026898,2]
[341843395,1731251452275,-210.30849333,0.00026898,2]
[341843397,1731251452284,-500.0,0.00026898,2]
[341843399,1731251452293,-500.0,0.00026898,2]
[341843401,1731251452302,-500.0,0.00026898,2]
[341843403,1731251452311,-500.0,0.00026898,2]
[341843405,1731251452320,-786.74,0.00026898,2]
[341843406,1731251452329,-500.0,0.00026898,2]
[341843408,1731251452338,-500.0,0.00026898,2]
[341843410,1731251452347,-822.97,0.00026898,2]
[341843412,1731251452356,-500.0,0.00026898,2]
[341843414,1731251452365,-500.0,0.00026898,2]
[341843416,1731251452375,-500.0,0.00026898,2]
[341843418,1731251452384,-500.0,0.00026898,2]
[341843420,1731251452392,-509.72254863,0.00026898,2]
[341843422,1731251452402,-500.0,0.00026898,2]
[341843424,1731251452411,-500.0,0.00026898,2]
[341843426,1731251452421,-518.22503075,0.00026898,2]
[341843429,1731251452430,-508.15460528,0.00026898,2]
[341843431,1731251452440,-500.0,0.00026898,2]
[341843433,1731251452449,-500.0,0.00026898,2]
[341843435,1731251452458,-511.98752116,0.00026898,2]
[341843436,1731251452472,-500.0,0.00026898,2]
[341843439,1731251452482,-500.0,0.00026898,2]
[341843441,1731251452491,-378.91152575,0.00026898,2]
[341843443,1731251452501,-500.0,0.00026898,2]
[341843445,1731251452510,-500.0,0.00026898,2]
[341843447,1731251452519,-500.0,0.00026898,2]
[341843449,1731251452528,-500.0,0.00026898,2]
[341843451,1731251452537,-500.0,0.00026898,2]
[341843453,1731251452546,-508.03704005,0.00026898,2]
[341843455,1731251452556,-500.0,0.00026898,2]
[341843457,1731251452566,-513.59196675,0.00026898,2]
[341843459,1731251452576,-853.36,0.00026898,2]
[341843460,1731251452585,-500.0,0.00026898,2]
[341843462,1731251452595,-151.0,0.00026898,7]
[341843465,1731251452604,-500.0,0.00026898,2]
[341843466,1731251452613,-500.0,0.00026898,2]
[341843468,1731251452623,-500.0,0.00026898,2]
[341843471,1731251452632,-500.0,0.00026898,2]
[341843472,1731251452641,-500.0,0.00026898,2]
[341843475,1731251452650,-500.0,0.00026898,2]
[341843477,1731251452659,-500.0,0.00026898,2]
[341843479,1731251452668,-500.0,0.00026898,2]
[341843481,1731251452677,-615.43208314,0.00026898,2]
[341843482,1731251452686,-500.0,0.00026898,2]
[341843485,1731251452695,-500.0,0.00026898,2]
[341843486,1731251452704,-500.0,0.00026898,2]
[341843489,1731251452716,-730.28,0.00026898,2]
[341843491,1731251452725,-500.0,0.00026898,2]
[341843492,1731251452734,-500.0,0.00026898,2]
[341843495,1731251452743,-500.0,0.00026898,2]
[341843497,1731251452752,-500.0,0.00026898,2]
[341843499,1731251452762,-500.0,0.00026898,2]
[341843501,1731251452771,-500.0,0.00026898,2]
[341843503,1731251452781,-500.0,0.00026898,2]
[341843505,1731251452790,-530.10188665,0.00026898,2]
[341843507,1731251452799,-500.0,0.00026898,2]
[341843509,1731251452809,-500.0,0.00026898,2]
[341843511,1731251452819,-567.27,0.00026898,15]
[341843513,1731251452828,-500.0,0.00026898,2]
[341843515,1731251452836,-176.25116655,0.00026898,2]
[341843517,1731251452846,-151.0,0.00026898,7]
[341843519,1731251452855,-576.10342839,0.00026898,2]
[341843520,1731251452864,-500.0,0.00026898,2]
[341843523,1731251452873,-500.0,0.00026898,2]
[341843525,1731251452883,-3523.39,0.00026898,2]
[341843526,1731251452892,-366.22939308,0.00026898,2]
[341843528,1731251452901,-500.0,0.00026898,2]
[341843530,1731251452910,-500.0,0.00026898,2]
[341843533,1731251452920,-508.84704452,0.00026898,2]
[341843534,1731251452929,-500.0,0.00026898,2]
[341843536,1731251452938,-500.0,0.00026898,2]
[341843539,1731251452947,-500.0,0.00026898,2]
[341843541,1731251452956,-500.0,0.00026898,2]
[341843543,1731251452967,-500.0,0.00026898,2]
[341843545,1731251452976,-502.90988778,0.00026898,2]
[341843547,1731251452986,-500.0,0.00026898,2]
[341843549,1731251452995,-500.0,0.00026898,2]
[341843551,1731251453005,-500.0,0.00026898,2]
[341843553,1731251453014,-500.0,0.00026898,2]
[341843555,1731251453024,-500.0,0.00026898,2]
[341843557,1731251453033,-500.0,0.00026898,2]
[341843559,1731251453043,-500.0,0.00026898,2]
[341843561,1731251453052,-522.85349665,0.00026898,2]
[341843563,1731251453061,-500.0,0.00026898,2]
[341843565,1731251453069,-500.0,0.00026898,2]
[341843567,1731251453079,-500.0,0.00026898,2]
[341843569,1731251453089,-500.0,0.00026898,2]
[341843571,1731251453099,-500.0,0.00026898,2]
[341843573,1731251453111,-552.39111165,0.00026898,2]
[341843575,1731251453119,-500.0,0.00026898,2]
[341843577,1731251453128,-500.0,0.00026898,2]
[341843579,1731251453138,-464.83068851,0.00026898,2]
[341843581,1731251453147,-500.0,0.00026898,2]
[341843583,1731251453156,-500.0,0.00026898,2]
[341843585,1731251453166,-539.07357722,0.00026898,2]
[341843586,1731251453175,-507.53598651,0.00026898,2]
[341843589,1731251453185,-500.0,0.00026898,2]
[341843591,1731251453194,-500.0,0.00026898,2]
[341843593,1731251453208,-500.0,0.00026898,2]
[341843595,1731251453230,-547.36290395,0.00026898,2]
[341843597,1731251453250,-500.0,0.00026898,2]
[341843598,1731251453270,-500.0,0.00026898,2]
[341843600,1731251453290,-500.0,0.00026898,2]
[341843602,1731251453311,-500.0,0.00026898,2]
[341843604,1731251453333,-511.57844434,0.00026898,2]
[341843607,1731251453354,-500.0,0.00026898,2]
[341843608,1731251453373,-500.0,0.00026898,2]
[341843611,1731251453396,-151.0,0.00026898,7]
[341843613,1731251453418,-517.66741829,0.00026898,2]
[341843615,1731251453440,-500.0,0.00026898,2]
[341843617,1731251453453,-1504.508038,0.00026898,7]
[341843619,1731251453462,-1186.11,0.00026898,2]
[341843621,1731251453472,-1504.508038,0.00026898,7]
[341843623,1731251453481,-1021.831594,0.00026898,7]
[341843625,1731251453490,-1021.831594,0.00026898,7]
[341843627,1731251453499,-500.0,0.00026898,2]
[341843629,1731251453508,-500.0,0.00026898,2]
[341843631,1731251453517,-682.43,0.00026898,2]
[341843633,1731251453526,-151.0,0.00026898,7]
[341843635,1731251453535,-500.0,0.00026898,2]
[341843636,1731251453545,-202.67763512,0.00026898,2]
[341843638,1731251453554,-500.0,0.00026898,2]
[341843641,1731251453563,-630.88,0.00026898,2]
[341843642,1731251453573,-500.0,0.00026898,2]
[341843644,1731251453582,-500.0,0.00026898,2]
[341843646,1731251453591,-438.01200611,0.00026898,2]
[341843649,1731251453601,-500.0,0.00026898,2]
[341843651,1731251453610,-500.0,0.00026898,2]
[341843653,1731251453619,-500.0,0.00026898,2]
[341843655,1731251453628,-200.0,0.00026898,2]
[341843657,1731251453638,-581.454559,0.00026898,7]
[341843668,1731251453731,-151.0,0.00026898,7]
[341843670,1731251453741,-500.0,0.00026898,2]
[341843672,1731251453750,-581.454559,0.00026898,7]
[341843674,1731251453759,-151.0,0.00026898,7]
[341843676,1731251453768,-511.16021568,0.00026898,2]
[341843678,1731251453777,-3218.147499,0.00026898,7]
[341843680,1731251453787,-3218.147499,0.00026898,7]
[341843682,1731251453797,-500.0,0.00026898,2]
[341843684,1731251453806,-1245.356628,0.00026898,7]
[341843686,1731251453815,-500.0,0.00026898,2]
[341843688,1731251453825,-1245.356628,0.00026898,7]
[341843690,1731251453834,-500.0,0.00026898,2]
[341843692,1731251453846,-500.0,0.00026898,2]
[341843694,1731251453855,-151.0,0.00026898,7]
[341843696,1731251453864,-500.0,0.00026898,2]
[341843698,1731251453874,-151.0,0.00026898,7]
[341843700,1731251453883,-500.0,0.00026898,2]
[341843702,1731251453893,-500.0,0.00026898,2]
[341843704,1731251453902,-523.58,0.00026898,2]
[341843706,1731251453911,-500.0,0.00026898,2]
[341843708,1731251453920,-500.0,0.00026898,2]
[341843710,1731251453930,-151.0,0.00026898,7]
[341843712,1731251453939,-500.0,0.00026898,2]
[341843714,1731251453948,-500.0,0.00026898,2]
[341843716,1731251453958,-321.88369257,0.00026898,2]
[341843718,1731251453968,-500.0,0.00026898,2]
[341843720,1731251453977,-500.0,0.00026898,2]
[341843722,1731251453987,-500.0,0.00026899,2]
[341843724,1731251453996,-500.0,0.00026899,2]
[341843726,1731251454005,-500.0,0.00026899,2]
[341843728,1731251454015,-500.0,0.00026899,2]
[341843730,1731251454024,-500.0,0.00026899,2]
[341843732,1731251454033,-634.55,0.0002711,2]
[341843734,1731251454042,-11495.75,0.0002711,2]
[341843736,1731251454051,-981.28,0.0002711,2]
[341843738,1731251454060,-1630.44,0.0002711,2]
[341843740,1731251454069,-500.0,0.0002711,2]
[341843742,1731251454078,-1560.60477738,0.0002711,2]
[341843745,1731251454093,-20851.75029045,0.0002711,2]
[341843779,1731251454526,-520.83333333,0.00023188,2]
[341843781,1731251454535,-500.0,0.00025475,2]
[341843783,1731251454544,-623.31,0.00025479,2]
[341843785,1731251454553,-166.82224597,0.00025739,2]
[341843787,1731251454563,-500.0,0.00025739,2]
[341843789,1731251454572,-195.06569111,0.00025739,2]
[341843791,1731251454581,-500.0,0.00025739,2]
[341843793,1731251454589,-500.0,0.00025739,2]
[341843795,1731251454599,-500.0,0.00025739,2]
[341843797,1731251454608,-500.0,0.00025739,2]
[341843799,1731251454617,-500.0,0.00025739,2]
[341843801,1731251454626,-500.0,0.00025739,2]
[341843803,1731251454635,-500.0,0.00025739,2]
[341843805,1731251454645,-500.0,0.00025739,2]
[341843807,1731251454654,-500.0,0.00025739,2]
[341843809,1731251454663,-500.0,0.00025739,2]
[341843811,1731251454673,-500.0,0.00025739,2]
[341843813,1731251454682,-500.0,0.00025739,2]
[341843815,1731251454691,-504.9986585,0.00025739,2]
[341843817,1731251454700,-500.0,0.00025739,2]
[341843819,1731251454709,-500.0,0.00025739,2]
[341843820,1731251454720,-550.0,0.00025739,2]
[341843822,1731251454729,-500.0,0.00025739,2]
[341843824,1731251454738,-380.42535446,0.00025739,2]
[341843826,1731251454748,-3049.70493217,0.0002711,2]
[341843828,1731251454757,-709.3,0.0002711,2]
[341843830,1731251454767,-491.83799877,0.0002711,2]
[341843832,1731251454776,-500.0,0.00027119,2]
[341843834,1731251454786,-598.49919802,0.00027119,2]
[341843836,1731251454795,-500.0,0.00027119,2]
[341843838,1731251454805,-500.0,0.00027119,2]
[341843840,1731251454814,-765.65,0.00027119,2]
[341843842,1731251454823,-500.0,0.00027119,2]
[341843844,1731251454833,-623.28,0.00027119,2]
[341843846,1731251454842,-500.0,0.00027119,2]
[341843848,1731251454851,-500.0,0.00027119,2]
[341843850,1731251454860,-808.18,0.00027119,2]
[341843852,1731251454869,-500.0,0.00027119,2]
[341843854,1731251454879,-253.34147774,0.00027119,2]
[341843856,1731251454888,-502.97266227,0.0002712,2]
[341843858,1731251454898,-1260.82,0.0002712,2]
[341843860,1731251454907,-151.0,0.0002712,7]
[341843862,1731251454916,-500.0,0.0002712,2]
[341843864,1731251454926,-840.8,0.0002712,2]
[341843866,1731251454935,-151.0,0.0002712,7]
[341843869,1731251454945,-824.95,0.0002712,2]
[341843871,1731251454954,-712.0,0.0002712,2]
[341843873,1731251454963,-500.0,0.0002712,2]
[341843875,1731251454974,-500.0,0.0002712,2]
[341843877,1731251454983,-151.0,0.0002712,7]
[341843879,1731251454993,-151.0,0.0002712,7]
[341843881,1731251455003,-738.38,0.0002712,2]
[341843891,1731251455086,-2189.89,0.0002712,2]
[341843894,1731251455108,-2323.190952,0.0002712,7]
[341843896,1731251455117,-2323.190952,0.0002712,7]
[341843898,1731251455127,-1207.73,0.0002712,2]
[341843899,1731251455136,-500.0,0.0002712,2]
[341843901,1731251455145,-151.0,0.0002712,7]
[341843903,1731251455155,-639.222275,0.0002712,7]
[341843905,1731251455165,-152.952186,0.0002712,7]
[341843907,1731251455174,-639.222275,0.0002712,7]
[341843910,1731251455185,-283.365748,0.0002712,7]
[341843912,1731251455194,-500.0,0.0002712,2]
[341843914,1731251455203,-2541.78,0.0002712,2]
[341843916,1731251455213,-932.900632,0.0002712,7]
[341843918,1731251455223,-500.0,0.0002712,2]
[341843919,1731251455233,-500.0,0.0002712,2]
[341843921,1731251455242,-1015.18,0.0002712,2]
[341843923,1731251455251,-932.900632,0.0002712,7]
[341843925,1731251455261,-151.0,0.0002712,7]
[341843927,1731251455270,-3399.721799,0.0002712,7]
[341843929,1731251455280,-151.0,0.0002712,7]
[341843931,1731251455289,-3399.721799,0.0002712,7]
[341843933,1731251455298,-1347.26,0.0002712,2]
[341843935,1731251455307,-500.0,0.0002712,2]
[341843937,1731251455316,-500.0,0.0002712,2]
[341843939,1731251455325,-500.0,0.0002712,2]
[341843941,1731251455335,-500.0,0.0002712,2]
[341843943,1731251455344,-1006.28,0.0002712,2]
[341843945,1731251455353,-329.349078,0.0002712,7]
[341843947,1731251455363,-1075.13,0.0002712,2]
[341843949,1731251455372,-329.349078,0.0002712,7]
[341843951,1731251455381,-500.0,0.0002712,2]
[341843953,1731251455391,-500.0,0.0002712,2]
[341843955,1731251455400,-2462.91,0.0002712,2]
[341843957,1731251455409,-1440.28,0.0002712,2]
[341843959,1731251455419,-1593.50401174,0.0002712,2]
[341843961,1731251455431,-741.67337622,0.0002712,2]
[341843964,1731251455442,-48.71261204,0.0002712,2]
[341843966,1731251455451,-151.0,0.0002712,7]
[341843968,1731251455460,-532.07,0.0002712,2]
[341843970,1731251455472,-500.0,0.0002712,2]
[341843972,1731251455481,-1715.03,0.0002712,2]
[341843974,1731251455491,-500.0,0.0002712,2]
[341843976,1731251455499,-257.304202,0.0002712,7]
[341843978,1731251455509,-674.851497,0.0002712,7]
[341843980,1731251455518,-500.0,0.0002712,2]
[341843982,1731251455527,-257.304202,0.0002712,7]
[341843983,1731251455536,-500.07,0.0002712,2]
[341843985,1731251455546,-674.851497,0.0002712,7]
[341843988,1731251455555,-788.08,0.0002712,2]
[341843989,1731251455565,-500.0,0.0002712,2]
[341843991,1731251455574,-500.0,0.0002712,2]
[341843993,1731251455584,-658.33,0.0002712,2]
[341843995,1731251455593,-998.39,0.0002712,2]
[341843998,1731251455603,-1038.74,0.0002712,2]
[341843999,1731251455614,-381.99520229,0.0002712,2]
[341844001,1731251455623,-766.99,0.0002712,2]
[341844004,1731251455632,-500.0,0.0002712,2]
[341844005,1731251455642,-500.0,0.0002712,2]
[341844007,1731251455651,-500.0,0.0002712,2]
[341844009,1731251455660,-500.0,0.0002712,2]
[341844011,1731251455670,-500.0,0.0002712,2]
[341844014,1731251455679,-481.6028141,0.0002712,2]
[341844015,1731251455688,-500.0,0.0002712,2]
[341844017,1731251455697,-500.0,0.0002712,2]
[341844019,1731251455707,-719.43,0.0002712,2]
[341844021,1731251455717,-500.0,0.0002712,2]
[341844024,1731251455727,-500.0,0.0002712,2]
[341844025,1731251455735,-500.0,0.0002712,2]
[341844028,1731251455745,-500.0,0.0002712,2]
[341844030,1731251455754,-246.088511,0.0002712,7]
[341844032,1731251455764,-2739.87,0.0002712,2]
[341844033,1731251455773,-500.0,0.0002712,2]
[341844035,1731251455782,-500.0,0.0002712,2]
[341844037,1731251455791,-246.088511,0.0002712,7]
[341844039,1731251455800,-716.87,0.0002712,2]
[341844041,1731251455810,-190.81479,0.0002712,7]
[341844043,1731251455819,-190.81479,0.0002712,7]
[341844045,1731251455829,-500.0,0.0002712,2]
[341844047,1731251455838,-500.0,0.0002712,2]
[341844049,1731251455847,-500.0,0.0002712,2]
[341844051,1731251455856,-151.0,0.0002712,7]
[341844053,1731251455865,-500.0,0.0002712,2]
[341844055,1731251455874,-500.0,0.0002712,2]
[341844057,1731251455883,-500.0,0.0002712,2]
[341844059,1731251455893,-8203.9,0.0002712,2]
[341844061,1731251455902,-2267.48,0.0002712,2]
[341844063,1731251455911,-500.0,0.0002712,2]
[341844065,1731251455920,-363.70436897,0.0002712,2]
[341844067,1731251455929,-661.19,0.0002712,2]
[341844069,1731251455938,-1972.07,0.0002712,2]
[341844071,1731251455947,-500.0,0.0002712,2]
[341844073,1731251455956,-647.77,0.0002712,2]
[341844075,1731251455967,-993.31,0.00027121,2]
[341844077,1731251455976,-2249.63,0.00027121,2]